fUSD/lending_fUSD_20250123
["ID","MTS","AMOUNT","RATE_DAILY","PERIOD"]
[350095225,1737623443988,-2190.49,0.00016712,2]
[350095227,1737623443997,-500.0,0.00016712,2]
[350095228,1737623444007,-500.0,0.00016712,2]
[350095230,1737623444015,-514.18,0.00016712,2]
[350095232,1737623444025,-500.0,0.00016712,2]
[350095234,1737623444034,-1235.63,0.00016712,2]
[350095236,1737623444043,-850.06,0.00016712,2]
[350095238,1737623444052,-1503.07,0.00016712,2]
[350095240,1737623444061,-516.46,0.00016712,2]
[350095241,1737623444070,-810.5,0.00016712,2]
[350095242,1737623444078,-985.71,0.00016712,2]
[350095243,1737623444087,-471.98580638,0.00016712,2]
[350095244,1737623444096,-1766.55,0.00016712,2]
[350095245,1737623444107,-500.0,0.00016712,2]
[350095246,1737623444120,-681.62,0.00016712,2]
[350095247,1737623444130,-500.0,0.00016712,2]
[350095259,1737623444276,-258.4692012,0.00016712,2]
[350095262,1737623444295,-312.0507988,0.00016712,2]
[350095264,1737623444305,-500.0,0.00016712,2]
[350095267,1737623444315,-500.0,0.00016712,2]
[350095269,1737623444325,-750.38,0.00016712,2]
[350095271,1737623444335,-500.0,0.00016712,2]
[350095273,1737623444346,-500.0,0.00016712,2]
[350095275,1737623444356,-500.0,0.00016712,2]
[350095277,1737623444365,-570.96,0.00016712,2]
[350095279,1737623444375,-1268.47,0.00016712,2]
[350095281,1737623444384,-1000.0,0.00016712,2]
[350095283,1737623444393,-500.0,0.00016712,2]
[350095285,1737623444403,-500.0,0.00016712,2]
[350095287,1737623444412,-840.27,0.00016712,2]
[350095289,1737623444421,-817.64,0.00016712,2]
[350095291,1737623444430,-500.0,0.00016712,2]
[350095293,1737623444440,-1745.63,0.00016712,2]
[350095295,1737623444448,-500.0,0.00016712,2]
[350095297,1737623444457,-500.0,0.00016712,2]
[350095299,1737623444467,-819.67,0.00016712,2]
[350095301,1737623444476,-1259.69,0.00016712,2]
[350095303,1737623444485,-500.0,0.00016712,2]
[350095305,1737623444494,-1349.21,0.00016712,2]
[350095307,1737623444504,-500.0,0.00016712,2]
[350095309,1737623444513,-1839.39,0.00016712,2]
[350095311,1737623444522,-635.29,0.00016712,2]
[350095313,1737623444531,-902.12,0.00016712,2]
[350095315,1737623444540,-500.0,0.00016712,2]
[350095316,1737623444549,-949.65,0.00016712,2]
[350095319,1737623444559,-623.84,0.00016712,2]
[350095320,1737623444568,-1494.47,0.00016712,2]
[350095323,1737623444577,-500.0,0.00016712,2]
[350095324,1737623444586,-500.0,0.00016712,2]
[350095327,1737623444596,-500.0,0.00016712,2]
[350095328,1737623444606,-1371.94,0.00016712,2]
[350095330,1737623444616,-530.07,0.00016712,2]
[350095332,1737623444625,-500.0,0.00016712,2]
[350095334,1737623444634,-1321.3,0.00016712,2]
[350095336,1737623444643,-649.37,0.00016712,2]
[350095339,1737623444652,-710.35,0.00016712,2]
[350095341,1737623444661,-5333.65,0.00016712,2]
[350095342,1737623444670,-1430.65,0.00016712,2]
[350095344,1737623444679,-500.0,0.00016712,2]
[350095347,1737623444689,-593.28,0.00016712,2]
[350095349,1737623444698,-500.0,0.00016712,2]
[350095351,1737623444707,-500.0,0.00016712,2]
[350095352,1737623444716,-936.29,0.00016712,2]
[350095355,1737623444727,-265.05465492,0.00016712,2]
[350095356,1737623444736,-1870.68,0.00016712,2]
[350095359,1737623444746,-542.4,0.00016712,2]
[350095361,1737623444755,-500.0,0.00016712,2]
[350095363,1737623444764,-500.0,0.00016712,2]
[350095364,1737623444773,-500.0,0.00016712,2]
[350095367,1737623444782,-511.19,0.00016712,2]
[350095368,1737623444791,-890.63,0.00016712,2]
[350095370,1737623444800,-500.0,0.00016712,2]
[350095372,1737623444810,-1691.43,0.00016712,2]
[350095374,1737623444819,-500.0,0.00016712,2]
[350095376,1737623444828,-500.0,0.00016712,2]
[350095378,1737623444837,-573.14,0.00016712,2]
[350095380,1737623444847,-500.0,0.00016712,2]
[350095383,1737623444856,-1326.68,0.00016712,2]
[350095385,1737623444866,-726.89,0.00016712,2]
[350095387,1737623444881,-666.14,0.00016712,2]
[350095389,1737623444890,-530.75,0.00016712,2]
[350095391,1737623444900,-1014.66,0.00016712,2]
[350095393,1737623444910,-680.99,0.00016712,2]
[350095395,1737623444919,-564.73,0.00016712,2]
[350095397,1737623444929,-500.0,0.00016712,2]
[350095399,1737623444939,-500.0,0.00016712,2]
[350095401,1737623444949,-832.5,0.00016712,2]
[350095403,1737623444959,-1381.84,0.00016712,2]
[350095405,1737623444968,-1023.9,0.00016712,2]
[350095407,1737623444977,-1265.3,0.00016712,2]
[350095409,1737623444986,-500.0,0.00016712,2]
[350095411,1737623444995,-500.0,0.00016712,2]
[350095413,1737623445003,-1106.31,0.00016712,2]
[350095415,1737623445015,-500.0,0.00016712,2]
[350095417,1737623445024,-500.0,0.00016712,2]
[350095419,1737623445033,-1859.77,0.00016712,2]
[350095421,1737623445042,-1084.75,0.00016712,2]
[350095423,1737623445051,-1000.0,0.00016716,2]
[350095425,1737623445060,-337.4533243,0.00016728,2]
[350095427,1737623445069,-4120.93921544,0.00016811,2]
[350095429,1737623445078,-273.72,0.00016813,2]
[350095431,1737623445087,-438.07,0.00016813,2]
[350095433,1737623445097,-2135.47949,0.0001682,2]
[350095435,1737623445106,-199.46775068,0.00016886,2]
[350095437,1737623445118,-1396.03689564,0.00016886,2]
[350095439,1737623445127,-214.41344537,0.00016985,2]
[350095441,1737623445136,-500.0,0.00016986,2]
[350095443,1737623445145,-500.0,0.00016986,2]
[350095445,1737623445157,-500.0,0.00016986,2]
[350095447,1737623445166,-500.0,0.00016986,2]
[350095449,1737623445175,-500.0,0.00016986,2]
[350095451,1737623445185,-500.0,0.00016986,2]
[350095453,1737623445195,-644.41316812,0.00016986,2]
[350095455,1737623445204,-500.0,0.00016986,2]
[350095457,1737623445214,-500.0,0.00016986,2]
[350095459,1737623445223,-184.8194847,0.00016986,2]
[350095461,1737623445233,-433.598303,0.00016986,2]
[350095463,1737623445242,-500.0,0.00016986,2]
[350095465,1737623445251,-500.0,0.00016986,2]
[350095467,1737623445260,-500.0,0.00016986,2]
[350095469,1737623445269,-500.0,0.00016986,2]
[350095471,1737623445278,-500.0,0.00016986,2]
[350095473,1737623445287,-500.0,0.00016986,2]
[350095475,1737623445296,-500.0,0.00016986,2]
[350095477,1737623445305,-1273.6,0.00016986,2]
[350095479,1737623445314,-759.09,0.00016986,2]
[350095481,1737623445323,-435.796508,0.00016986,2]
[350095482,1737623445333,-500.0,0.00016986,2]
[350095483,1737623445343,-500.0,0.00016986,2]
[350095484,1737623445353,-379.7919674,0.00016986,2]
[350095485,1737623445362,-500.0,0.00016986,2]
[350095486,1737623445371,-500.0,0.00016986,2]
[350095487,1737623445380,-500.0,0.00016986,2]
[350095488,1737623445389,-500.0,0.00016986,2]
[350095489,1737623445399,-520.87,0.00016986,2]
[350095490,1737623445408,-500.0,0.00016986,2]
[350095491,1737623445417,-500.0,0.00016986,2]
[350095492,1737623445426,-500.0,0.00016986,2]
[350095493,1737623445436,-500.0,0.00016986,2]
[350095494,1737623445445,-500.0,0.00016986,2]
[350095495,1737623445454,-500.0,0.00016986,2]
[350095496,1737623445463,-500.0,0.00016986,2]
[350095497,1737623445472,-500.0,0.00016986,2]
[350095498,1737623445481,-500.0,0.00016986,2]
[350095499,1737623445490,-546.07,0.00016986,2]
[350095500,1737623445502,-500.0,0.00016986,2]
[350095501,1737623445512,-500.0,0.00016986,2]
[350095502,1737623445522,-500.0,0.00016986,2]
[350095503,1737623445532,-500.0,0.00016986,2]
[350095504,1737623445542,-500.0,0.00016986,2]
[350095505,1737623445552,-603.2,0.00016986,2]
[350095506,1737623445562,-500.0,0.00016986,2]
[350095507,1737623445571,-500.0,0.00016986,2]
[350095508,1737623445580,-500.0,0.00016986,2]
[350095509,1737623445590,-500.0,0.00016986,2]
[350095510,1737623445599,-500.0,0.00016986,2]
[350095511,1737623445608,-575.64,0.00016986,2]
[350095512,1737623445618,-500.0,0.00016986,2]
[350095513,1737623445627,-500.0,0.00016986,2]
[350095514,1737623445636,-500.0,0.00016986,2]
[350095515,1737623445645,-536.69,0.00016986,2]
[350095516,1737623445654,-284.78170819,0.00016986,2]
[350095517,1737623445663,-561.16,0.00016986,2]
[350095518,1737623445671,-686.87,0.00016986,2]
[350095519,1737623445680,-500.0,0.00016986,2]
[350095520,1737623445689,-500.0,0.00016986,2]
[350095521,1737623445698,-500.0,0.00016986,2]
[350095522,1737623445708,-654.61,0.00016986,2]
[350095523,1737623445717,-500.0,0.00016986,2]
[350095524,1737623445726,-615.36,0.00016986,2]
[350095525,1737623445735,-500.0,0.00016986,2]
[350095526,1737623445744,-651.77,0.00016986,2]
[350095527,1737623445753,-500.0,0.00016986,2]
[350095528,1737623445762,-505.57,0.00016986,2]
[350095529,1737623445771,-500.0,0.00016986,2]
[350095530,1737623445780,-500.0,0.00016986,2]
[350095531,1737623445789,-500.0,0.00016986,2]
[350095532,1737623445798,-551.97,0.00016986,2]
[350095533,1737623445807,-500.0,0.00016986,2]
[350095534,1737623445820,-500.0,0.00016986,2]
[350095535,1737623445832,-500.0,0.00016986,2]
[350095536,1737623445847,-500.0,0.00016986,2]
[350095537,1737623445861,-628.37,0.00016986,2]
[350095538,1737623445872,-304.00005952,0.00016986,2]
[350095539,1737623445883,-500.0,0.00016986,2]
[350095540,1737623445895,-597.88,0.00016986,2]
[350095541,1737623445908,-500.0,0.00016986,2]
[350095542,1737623445920,-500.0,0.00016986,2]
[350095543,1737623445932,-500.0,0.00016986,2]
[350095544,1737623445945,-618.63,0.00016986,2]
[350095545,1737623445958,-517.34,0.00016986,2]
[350095546,1737623445970,-666.65,0.00016986,2]
[350095547,1737623445987,-500.0,0.00016986,2]
[350095548,1737623445999,-500.0,0.00016986,2]
[350095549,1737623446009,-500.0,0.00016986,2]
[350095550,1737623446021,-500.0,0.00016986,2]
[350095551,1737623446034,-500.0,0.00016986,2]
[350095552,1737623446046,-500.0,0.00016986,2]
[350095553,1737623446058,-500.0,0.00016986,2]
[350095554,1737623446070,-500.0,0.00016986,2]
[350095555,1737623446082,-3587.15,0.00016986,2]
[350095556,1737623446096,-2068.44,0.00016986,2]
[350095557,1737623446108,-533.91,0.00016986,2]
[350095558,1737623446121,-731.16,0.00016986,2]
[350095559,1737623446133,-500.0,0.00016986,2]
[350095560,1737623446144,-616.9,0.00016986,2]
[350095561,1737623446162,-689.59,0.00016986,2]
[350095562,1737623446173,-500.0,0.00016986,2]
[350095563,1737623446187,-796.43,0.00016986,2]
[350095564,1737623446199,-1487.94,0.00016986,2]
[350095565,1737623446212,-630.97,0.00016986,2]
[350095566,1737623446224,-500.0,0.00016986,2]
[350095567,1737623446236,-500.0,0.00016986,2]
[350095568,1737623446248,-500.0,0.00016986,2]
[350095569,1737623446261,-1240.51,0.00016986,2]
[350095570,1737623446273,-500.0,0.00016986,2]
[350095571,1737623446284,-1460.52,0.00016986,2]
[350095572,1737623446296,-2135.22,0.00016986,2]
[350095573,1737623446306,-500.0,0.00016986,2]
[350095574,1737623446316,-1323.84,0.00016986,2]
[350095575,1737623446328,-639.3,0.00016986,2]
[350095576,1737623446343,-888.2,0.00016986,2]
[350095577,1737623446359,-3222.74,0.00016986,2]
[350095578,1737623446371,-832.79,0.00016986,2]
[350095579,1737623446382,-2190.49,0.00016986,2]
[350095580,1737623446393,-500.0,0.00016986,2]
[350095581,1737623446404,-514.18,0.00016986,2]
[350095582,1737623446417,-1235.63,0.00016986,2]
[350095583,1737623446429,-850.06,0.00016986,2]
[350095584,1737623446443,-1503.07,0.00016986,2]
[350095585,1737623446455,-516.46,0.00016986,2]
[350095586,1737623446467,-810.5,0.00016986,2]
[350095587,1737623446477,-985.71,0.00016986,2]
[350095588,1737623446489,-1766.55,0.00016986,2]
[350095589,1737623446500,-500.0,0.00016986,2]
[350095590,1737623446511,-681.62,0.00016986,2]
[350095591,1737623446523,-570.52,0.00016986,2]
[350095592,1737623446534,-500.0,0.00016986,2]
[350095593,1737623446545,-500.0,0.00016986,2]
[350095594,1737623446556,-750.38,0.00016986,2]
[350095595,1737623446569,-500.0,0.00016986,2]
[350095596,1737623446580,-500.0,0.00016986,2]
[350095597,1737623446593,-279.88824265,0.00016986,2]
[350095598,1737623446606,-570.96,0.00016986,2]
[350095599,1737623446618,-1268.47,0.00016986,2]
[350095600,1737623446630,-963.69115967,0.00016986,2]
[350095601,1737623446641,-500.0,0.00016986,2]
[350095602,1737623446652,-840.27,0.00016986,2]
[350095603,1737623446664,-817.64,0.00016986,2]
[350095604,1737623446676,-500.0,0.00016986,2]
[350095605,1737623446687,-1745.63,0.00016986,2]
[350095606,1737623446699,-500.0,0.00016986,2]
[350095607,1737623446710,-248.85263053,0.00016986,2]
[350095608,1737623446721,-819.67,0.00016986,2]
[350095609,1737623446732,-1259.69,0.00016986,2]
[350095610,1737623446743,-500.0,0.00016986,2]
[350095611,1737623446754,-1349.21,0.00016986,2]
[350095612,1737623446764,-500.0,0.00016986,2]
[350095613,1737623446776,-1839.39,0.00016986,2]
[350095614,1737623446788,-635.29,0.00016986,2]
[350095615,1737623446799,-902.12,0.00016986,2]
[350095616,1737623446811,-547.09494276,0.00016986,2]
[350095617,1737623446823,-949.65,0.00016986,2]
[350095618,1737623446835,-623.84,0.00016986,2]
[350095619,1737623446846,-1494.47,0.00016986,2]
[350095620,1737623446857,-500.0,0.00016986,2]
[350095621,1737623446868,-500.0,0.00016986,2]
[350095622,1737623446878,-500.0,0.00016986,2]
[350095623,1737623446889,-1371.94,0.00016986,2]
[350095624,1737623446900,-530.07,0.00016986,2]
[350095625,1737623446911,-1321.3,0.00016986,2]
[350095626,1737623446922,-649.37,0.00016986,2]
[350095627,1737623446933,-710.35,0.00016986,2]
[350095628,1737623446943,-5333.65,0.00016986,2]
[350095629,1737623446956,-1430.65,0.00016986,2]
[350095630,1737623446967,-500.0,0.00016986,2]
[350095631,1737623446978,-593.28,0.00016986,2]
[350095632,1737623446991,-500.0,0.00016986,2]
[350095633,1737623447002,-500.0,0.00016986,2]
[350095634,1737623447013,-936.29,0.00016986,2]
[350095635,1737623447026,-1870.68,0.00016986,2]
[350095636,1737623447037,-542.4,0.00016986,2]
[350095637,1737623447048,-500.0,0.00016986,2]
[350095638,1737623447059,-500.0,0.00016986,2]
[350095639,1737623447070,-511.19,0.00016986,2]
[350095640,1737623447081,-890.63,0.00016986,2]
[350095641,1737623447094,-500.0,0.00016986,2]
[350095642,1737623447104,-1691.43,0.00016986,2]
[350095643,1737623447115,-500.0,0.00016986,2]
[350095644,1737623447127,-500.0,0.00016986,2]
[350095645,1737623447138,-573.14,0.00016986,2]
[350095646,1737623447150,-500.0,0.00016986,2]
[350095647,1737623447166,-1326.68,0.00016986,2]
[350095648,1737623447177,-726.89,0.00016986,2]
[350095649,1737623447188,-666.14,0.00016986,2]
[350095650,1737623447201,-530.75,0.00016986,2]
[350095651,1737623447213,-1014.66,0.00016986,2]
[350095652,1737623447223,-680.99,0.00016986,2]
[350095653,1737623447235,-564.73,0.00016986,2]
[350095654,1737623447246,-500.0,0.00016986,2]
[350095655,1737623447258,-1381.84,0.00016986,2]
[350095656,1737623447270,-1023.9,0.00016986,2]
[350095657,1737623447280,-832.5,0.00016986,2]
[350095658,1737623447292,-500.0,0.00016986,2]
[350095659,1737623447304,-1265.3,0.00016986,2]
[350095660,1737623447315,-500.0,0.00016986,2]
[350095661,1737623447326,-1106.31,0.00016986,2]
[350095662,1737623447337,-500.0,0.00016986,2]
[350095663,1737623447351,-183.40898897,0.00016986,2]
[350095664,1737623447363,-1859.77,0.00016986,2]
[350095665,1737623447374,-1084.75,0.00016986,2]
[350095666,1737623447383,-600.0,0.00017,2]
[350095667,1737623447393,-1961.62,0.00017068,2]
[350095668,1737623447402,-437.34,0.00017068,2]
[350095669,1737623447411,-1963.58,0.00017068,2]
[350095670,1737623447421,-298.1,0.00017068,2]
[350095671,1737623447431,-298.1,0.00017068,2]
[350095672,1737623447440,-298.1,0.00017068,2]
[350095673,1737623447450,-298.1,0.00017068,2]
[350095674,1737623447460,-298.1,0.00017068,2]
[350095675,1737623447470,-298.1,0.00017068,2]
[350095676,1737623447481,-298.1,0.00017068,2]
[350095677,1737623447490,-298.1,0.00017068,2]
[350095678,1737623447500,-297.29,0.00017068,2]
[350095679,1737623447510,-337.4533243,0.00017072,2]
[350095680,1737623447520,-500.0,0.00017174,2]
[350095681,1737623447530,-438.64,0.00017233,2]
[350095682,1737623447541,-156.2090988,0.0001725,2]
[350095683,1737623447551,-467.17735714,0.0001726,2]
[350095684,1737623447562,-500.0,0.0001726,2]
[350095685,1737623447572,-500.0,0.0001726,2]
[350095686,1737623447582,-500.0,0.0001726,2]
[350095687,1737623447591,-500.0,0.0001726,2]
[350095688,1737623447605,-500.0,0.0001726,2]
[350095689,1737623447615,-490.42211074,0.0001726,2]
[350095690,1737623447624,-433.598303,0.0001726,2]
[350095691,1737623447634,-500.0,0.0001726,2]
[350095692,1737623447643,-500.0,0.0001726,2]
[350095693,1737623447653,-500.0,0.0001726,2]
[350095694,1737623447662,-500.0,0.0001726,2]
[350095695,1737623447672,-500.0,0.0001726,2]
[350095696,1737623447682,-500.0,0.0001726,2]
[350095697,1737623447691,-1273.6,0.0001726,2]
[350095698,1737623447966,-759.09,0.0001726,2]
[350095699,1737623447979,-435.796508,0.0001726,2]
[350095700,1737623447991,-500.0,0.0001726,2]
[350095701,1737623448001,-500.0,0.0001726,2]
[350095702,1737623448010,-500.0,0.0001726,2]
[350095703,1737623448020,-500.0,0.0001726,2]
[350095704,1737623448030,-500.0,0.0001726,2]
[350095705,1737623448040,-500.0,0.0001726,2]
[350095706,1737623448050,-520.87,0.0001726,2]
[350095707,1737623448060,-500.0,0.0001726,2]
[350095708,1737623448070,-500.0,0.0001726,2]
[350095709,1737623448079,-500.0,0.0001726,2]
[350095710,1737623448095,-500.0,0.0001726,2]
[350095711,1737623448105,-500.0,0.0001726,2]
[350095712,1737623448115,-500.0,0.0001726,2]
[350095713,1737623448123,-500.0,0.0001726,2]
[350095714,1737623448133,-500.0,0.0001726,2]
[350095715,1737623448142,-546.07,0.0001726,2]
[350095716,1737623448153,-500.0,0.0001726,2]
[350095717,1737623448165,-500.0,0.0001726,2]
[350095718,1737623448174,-500.0,0.0001726,2]
[350095719,1737623448184,-166.58743213,0.0001726,2]
[350095720,1737623448195,-276.63943066,0.0001726,2]
[350095721,1737623448204,-603.2,0.0001726,2]
[350095722,1737623448214,-500.0,0.0001726,2]
[350095723,1737623448223,-500.0,0.0001726,2]
[350095724,1737623448235,-500.0,0.0001726,2]
[350095725,1737623448245,-500.0,0.0001726,2]
[350095726,1737623448254,-500.0,0.0001726,2]
[350095727,1737623448263,-575.64,0.0001726,2]
[350095728,1737623448273,-500.0,0.0001726,2]
[350095729,1737623448282,-500.0,0.0001726,2]
[350095730,1737623448291,-500.0,0.0001726,2]
[350095731,1737623448301,-536.69,0.0001726,2]
[350095732,1737623448310,-561.16,0.0001726,2]
[350095733,1737623448319,-500.0,0.0001726,2]
[350095734,1737623448330,-686.87,0.0001726,2]
[350095735,1737623448340,-500.0,0.0001726,2]
[350095736,1737623448353,-500.0,0.0001726,2]
[350095737,1737623448363,-654.61,0.0001726,2]
[350095738,1737623448372,-500.0,0.0001726,2]
[350095739,1737623448382,-615.36,0.0001726,2]
[350095740,1737623448392,-500.0,0.0001726,2]
[350095741,1737623448401,-651.77,0.0001726,2]
[350095742,1737623448410,-500.0,0.0001726,2]
[350095743,1737623448420,-505.57,0.0001726,2]
[350095744,1737623448429,-500.0,0.0001726,2]
[350095745,1737623448439,-500.0,0.0001726,2]
[350095746,1737623448449,-370.27,0.0001726,2]
[350095747,1737623448459,-551.97,0.0001726,2]
[350095748,1737623448469,-500.0,0.0001726,2]
[350095749,1737623448478,-500.0,0.0001726,2]
[350095750,1737623448488,-500.0,0.0001726,2]
[350095751,1737623448497,-500.0,0.0001726,2]
[350095752,1737623448507,-628.37,0.0001726,2]
[350095753,1737623448517,-500.0,0.0001726,2]
[350095754,1737623448529,-597.88,0.0001726,2]
[350095755,1737623448539,-500.0,0.0001726,2]
[350095756,1737623448549,-388.76774706,0.0001726,2]
[350095757,1737623448558,-500.0,0.0001726,2]
[350095758,1737623448567,-618.63,0.0001726,2]
[350095759,1737623448576,-517.34,0.0001726,2]
[350095760,1737623448586,-666.65,0.0001726,2]
[350095761,1737623448596,-500.0,0.0001726,2]
[350095762,1737623448605,-517.66151959,0.0001726,2]
[350095763,1737623448614,-500.0,0.0001726,2]
[350095764,1737623448623,-500.0,0.0001726,2]
[350095765,1737623448632,-500.0,0.0001726,2]
[350095766,1737623448641,-500.0,0.0001726,2]
[350095767,1737623448650,-500.0,0.0001726,2]
[350095768,1737623448660,-500.0,0.0001726,2]
[350095769,1737623448669,-3587.15,0.0001726,2]
[350095770,1737623448679,-2068.44,0.0001726,2]
[350095771,1737623448688,-533.91,0.0001726,2]
[350095772,1737623448698,-731.16,0.0001726,2]
[350095773,1737623448707,-500.0,0.0001726,2]
[350095774,1737623448716,-616.9,0.0001726,2]
[350095775,1737623448726,-689.59,0.0001726,2]
[350095776,1737623448735,-500.0,0.0001726,2]
[350095777,1737623448744,-796.43,0.0001726,2]
[350095778,1737623448754,-1487.94,0.0001726,2]
[350095779,1737623448763,-630.97,0.0001726,2]
[350095780,1737623448773,-500.0,0.0001726,2]
[350095781,1737623448782,-500.0,0.0001726,2]
[350095782,1737623448792,-500.0,0.0001726,2]
[350095783,1737623448802,-1240.51,0.0001726,2]
[350095784,1737623448811,-500.0,0.0001726,2]
[350095785,1737623448820,-1460.52,0.0001726,2]
[350095786,1737623448830,-2135.22,0.0001726,2]
[350095787,1737623448840,-500.0,0.0001726,2]
[350095788,1737623448851,-1323.84,0.0001726,2]
[350095789,1737623448861,-639.3,0.0001726,2]
[350095790,1737623448870,-888.2,0.0001726,2]
[350095791,1737623448880,-3222.74,0.0001726,2]
[350095792,1737623448890,-832.79,0.0001726,2]
[350095793,1737623448899,-2190.49,0.0001726,2]
[350095794,1737623448908,-500.0,0.0001726,2]
[350095795,1737623448918,-514.18,0.0001726,2]
[350095796,1737623448927,-1235.63,0.0001726,2]
[350095797,1737623448937,-850.06,0.0001726,2]
[350095798,1737623448946,-1503.07,0.0001726,2]
[350095799,1737623448956,-516.46,0.0001726,2]
[350095800,1737623448965,-810.5,0.0001726,2]
[350095801,1737623448975,-985.71,0.0001726,2]
[350095802,1737623448984,-1766.55,0.0001726,2]
[350095803,1737623448994,-500.0,0.0001726,2]
[350095804,1737623449003,-681.62,0.0001726,2]
[350095805,1737623449012,-570.52,0.0001726,2]
[350095806,1737623449022,-500.0,0.0001726,2]
[350095807,1737623449031,-500.0,0.0001726,2]
[350095808,1737623449040,-750.38,0.0001726,2]
[350095809,1737623449050,-452.33685274,0.0001726,2]
[350095810,1737623449060,-570.96,0.0001726,2]
[350095811,1737623449069,-1268.47,0.0001726,2]
[350095812,1737623449078,-500.0,0.0001726,2]
[350095813,1737623449088,-840.27,0.0001726,2]
[350095814,1737623449099,-817.64,0.0001726,2]
[350095815,1737623449108,-500.0,0.0001726,2]
[350095816,1737623449118,-1745.63,0.0001726,2]
[350095817,1737623449127,-500.0,0.0001726,2]
[350095818,1737623449137,-819.67,0.0001726,2]
[350095819,1737623449147,-1259.69,0.0001726,2]
[350095820,1737623449158,-500.0,0.0001726,2]
[350095821,1737623449169,-1349.21,0.0001726,2]
[350095822,1737623449178,-500.0,0.0001726,2]
[350095823,1737623449187,-1839.39,0.0001726,2]
[350095824,1737623449197,-635.29,0.0001726,2]
[350095825,1737623449207,-902.12,0.0001726,2]
[350095826,1737623449216,-949.65,0.0001726,2]
[350095827,1737623449226,-623.84,0.0001726,2]
[350095828,1737623449238,-1494.47,0.0001726,2]
[350095829,1737623449247,-500.0,0.0001726,2]
[350095830,1737623449257,-500.0,0.0001726,2]
[350095831,1737623449267,-500.0,0.0001726,2]
[350095832,1737623449277,-1371.94,0.0001726,2]
[350095833,1737623449286,-530.07,0.0001726,2]
[350095834,1737623449296,-1321.3,0.0001726,2]
[350095835,1737623449305,-649.37,0.0001726,2]
[350095836,1737623449315,-710.35,0.0001726,2]
[350095837,1737623449324,-5333.65,0.0001726,2]
[350095838,1737623449335,-1430.65,0.0001726,2]
[350095839,1737623449346,-500.0,0.0001726,2]
[350095840,1737623449356,-593.28,0.0001726,2]
[350095841,1737623449366,-500.0,0.0001726,2]
[350095842,1737623449376,-500.0,0.0001726,2]
[350095843,1737623449387,-936.29,0.0001726,2]
[350095844,1737623449397,-1870.68,0.0001726,2]
[350095845,1737623449407,-542.4,0.0001726,2]
[350095846,1737623449416,-500.0,0.0001726,2]
[350095847,1737623449426,-500.0,0.0001726,2]
[350095848,1737623449437,-511.19,0.0001726,2]
[350095849,1737623449446,-890.63,0.0001726,2]
[350095850,1737623449456,-500.0,0.0001726,2]
[350095851,1737623449465,-1691.43,0.0001726,2]
[350095852,1737623449475,-500.0,0.0001726,2]
[350095853,1737623449485,-500.0,0.0001726,2]
[350095854,1737623449494,-573.14,0.0001726,2]